[Event "Fast Chess"]
[Site "ChessKid.com"]
[Date "2020.04.05"]
[Round "1"]
[White "Li, Patrick"]
[Black "Dai, Lana"]
[Result "1-0"]
[ECO "C55"]
[WhiteElo "941"]
[BlackElo "1209"]
[PlyCount "59"]
[EventDate "2020.??.??"]
[TimeControl "180"]
[WhiteClock "0:00:01"]
[BlackClock "0:00:05"]

1. e4 {[%emt 0:00:02]} e5 {[%emt 0:00:03]} 2. Nf3 {[%emt 0:00:01]} Nf6 {
[%emt 0:00:02]} 3. Nc3 {[%emt 0:00:02]} Nc6 {[%emt 0:00:02]} 4. Bc4 {[%emt 0:
00:15]} Bc5 {[%emt 0:00:02]} 5. Ng5 {[%emt 0:00:01]} d5 {[%emt 0:00:09]} 6.
exd5 {[%emt 0:00:04]} Na5 {[%emt 0:00:13]} 7. Bb5+ {[%emt 0:00:06]} c6 {
[%emt 0:00:04]} 8. dxc6 {[%emt 0:00:02]} bxc6 {[%emt 0:00:01]} 9. Bd3 {[%emt 0:
00:07]} Ng4 {[%emt 0:00:15]} 10. O-O {[%emt 0:00:03]} Qxg5 {[%emt 0:00:07]} 11.
Be4 {[%emt 0:00:09]} Qh4 {[%emt 0:00:04]} 12. h3 {[%emt 0:00:15]} Bxf2+ {
[%emt 0:00:19]} 13. Kh1 {[%emt 0:00:05]} O-O {[%emt 0:00:18]} 14. Qxg4 {
[%emt 0:00:05]} Qxg4 {[%emt 0:00:09]} 15. hxg4 {[%emt 0:00:03]} Bd4 {[%emt 0:
00:05]} 16. Bf5 {[%emt 0:00:21]} Bxf5 {[%emt 0:00:06]} 17. gxf5 {[%emt 0:00:03]
} f6 {[%emt 0:00:04]} 18. Ne2 {[%emt 0:00:09]} Rae8 {[%emt 0:00:09]} 19. Nxd4 {
[%emt 0:00:06]} exd4 {[%emt 0:00:03]} 20. d3 {[%emt 0:00:06]} Re2 {[%emt 0:00:
06]} 21. Bf4 {[%emt 0:00:08]} Rxc2 {[%emt 0:00:07]} 22. b3 {[%emt 0:00:07]} Rc3
{[%emt 0:00:05]} 23. Bd2 {[%emt 0:00:08]} Rxd3 {[%emt 0:00:04]} 24. Bxa5 {
[%emt 0:00:04]} Rf7 {[%emt 0:00:08]} 25. Rac1 {[%emt 0:00:03]} c5 {[%emt 0:00:
07]} 26. Rxc5 {[%emt 0:00:03]} Rg3 {[%emt 0:00:02]} 27. Kh2 {[%emt 0:00:06]}
Re3 {[%emt 0:00:02]} 28. Rf4 {[%emt 0:00:06]} Re2 {[%emt 0:00:02]} 29. Rh4 {
[%emt 0:00:02]} Rxa2 {[%emt 0:00:02]} 30. Rf4 {[%emt 0:00:03] WideClassyQuiz
won on time} 1-0

[Event "Fast Chess"]
[Site "ChessKid.com"]
[Date "2020.04.05"]
[Round "2"]
[White "Georgiev, Maximilian"]
[Black "Li, Patrick"]
[Result "1-0"]
[ECO "C58"]
[WhiteElo "1340"]
[BlackElo "938"]
[PlyCount "45"]
[EventDate "2020.??.??"]
[TimeControl "180"]
[WhiteClock "0:00:24"]
[BlackClock "0:01:54"]

1. e4 {[%emt 0:00:00]} e5 {[%emt 0:00:05]} 2. Nf3 {[%emt 0:00:01]} Nc6 {
[%emt 0:00:03]} 3. Bc4 {[%emt 0:00:01]} Nf6 {[%emt 0:00:04]} 4. Ng5 {[%emt 0:
00:02]} d5 {[%emt 0:00:03]} 5. exd5 {[%emt 0:00:01]} Na5 {[%emt 0:00:05]} 6.
Bd3 {[%emt 0:00:06]} Qxd5 {[%emt 0:00:09]} 7. Nf3 {[%emt 0:00:05]} Qd7 {
[%emt 0:00:10]} 8. O-O {[%emt 0:00:02]} Bc5 {[%emt 0:00:08]} 9. Nxe5 {[%emt 0:
00:02]} Qe7 {[%emt 0:00:06]} 10. Re1 {[%emt 0:00:05]} Qd6 {[%emt 0:00:13]} 11.
Nf3+ {[%emt 0:00:04]} Be6 {[%emt 0:00:14]} 12. Nc3 {[%emt 0:00:05]} Qb6 {
[%emt 0:00:08]} 13. Rf1 {[%emt 0:00:04]} O-O {[%emt 0:00:06]} 14. Na4 {[%emt 0:
00:02]} Qd6 {[%emt 0:00:06]} 15. Nxc5 {[%emt 0:00:02]} Qxc5 {[%emt 0:00:05]}
16. a3 {[%emt 0:00:05]} Nc4 {[%emt 0:00:09]} 17. b4 {[%emt 0:00:05]} Qb5 {
[%emt 0:00:08]} 18. Bxc4 {[%emt 0:00:02]} Qxc4 {[%emt 0:00:05]} 19. Ne5 {
[%emt 0:00:02]} Qd4 {[%emt 0:00:08]} 20. Nf3 {[%emt 0:00:03]} Qxa1 {[%emt 0:00:
04]} 21. d3 {[%emt 0:00:04]} Qb1 {[%emt 0:00:06]} 22. Bg5 {[%emt 0:00:02]} Ng4
{[%emt 0:00:12]} 23. Qxb1 {[%emt 0:00:03] TallSnazzyBall won on time} 1-0

[Event "Fast Chess"]
[Site "ChessKid.com"]
[Date "2020.04.05"]
[Round "2"]
[White "Li, Tobias"]
[Black "Sasse, Gabriel"]
[Result "0-1"]
[ECO "C57"]
[WhiteElo "1208"]
[BlackElo "1277"]
[PlyCount "90"]
[EventDate "2020.??.??"]
[TimeControl "180"]
[WhiteClock "0:01:00"]
[BlackClock "0:00:49"]

1. e4 {[%emt 0:00:01]} e5 {[%emt 0:00:00]} 2. Nf3 {[%emt 0:00:02]} Nc6 {
[%emt 0:00:01]} 3. Nc3 {[%emt 0:00:01]} Bc5 {[%emt 0:00:00]} 4. Bc4 {[%emt 0:
00:02]} Nf6 {[%emt 0:00:01]} 5. Ng5 {[%emt 0:00:02]} O-O {[%emt 0:00:01]} 6.
Nxf7 {[%emt 0:00:02]} Rxf7 {[%emt 0:00:01]} 7. Bxf7+ {[%emt 0:00:01]} Kxf7 {
[%emt 0:00:01]} 8. O-O {[%emt 0:00:02]} d5 {[%emt 0:00:04]} 9. d3 {[%emt 0:00:
03]} dxe4 {[%emt 0:00:02]} 10. dxe4 {[%emt 0:00:01]} Qxd1 {[%emt 0:00:02]} 11.
Rxd1 {[%emt 0:00:02]} Bg4 {[%emt 0:00:07]} 12. Re1 {[%emt 0:00:03]} Nd4 {
[%emt 0:00:08]} 13. h3 {[%emt 0:00:08]} Nxc2 {[%emt 0:00:02]} 14. Bd2 {[%emt 0:
00:09]} Nxa1 {[%emt 0:00:02]} 15. hxg4 {[%emt 0:00:04]} Nc2 {[%emt 0:00:07]}
16. Rc1 {[%emt 0:00:10]} Nd4 {[%emt 0:00:04]} 17. Be3 {[%emt 0:00:01]} Ne2+ {
[%emt 0:00:06]} 18. Nxe2 {[%emt 0:00:03]} Bxe3 {[%emt 0:00:02]} 19. fxe3 {
[%emt 0:00:03]} Nxg4 {[%emt 0:00:02]} 20. Rxc7+ {[%emt 0:00:03]} Ke6 {[%emt 0:
00:05]} 21. Rxb7 {[%emt 0:00:01]} Rc8 {[%emt 0:00:03]} 22. Rxg7 {[%emt 0:00:14]
} Nxe3 {[%emt 0:00:07]} 23. Rg3 {[%emt 0:00:07]} Nc4 {[%emt 0:00:05]} 24. Rc3 {
[%emt 0:00:03]} Kd6 {[%emt 0:00:10]} 25. b3 {[%emt 0:00:02]} h5 {[%emt 0:00:04]
} 26. Rxc4 {[%emt 0:00:02]} Rxc4 {[%emt 0:00:02]} 27. bxc4 {[%emt 0:00:02]} Kc5
{[%emt 0:00:01]} 28. Ng3 {[%emt 0:00:08]} Kxc4 {[%emt 0:00:02]} 29. Nxh5 {
[%emt 0:00:01]} Kd4 {[%emt 0:00:01]} 30. g4 {[%emt 0:00:01]} Kxe4 {[%emt 0:00:
01]} 31. Kg2 {[%emt 0:00:05]} Kd3 {[%emt 0:00:03]} 32. Kg3 {[%emt 0:00:03]} e4
{[%emt 0:00:00]} 33. g5 {[%emt 0:00:01]} e3 {[%emt 0:00:01]} 34. g6 {[%emt 0:
00:01]} e2 {[%emt 0:00:01]} 35. Kf2 {[%emt 0:00:01]} Kd2 {[%emt 0:00:02]} 36.
g7 {[%emt 0:00:02]} e1=Q+ {[%emt 0:00:02]} 37. Kg2 {[%emt 0:00:00]} Qe2+ {
[%emt 0:00:05]} 38. Kh1 {[%emt 0:00:04]} Qxh5+ {[%emt 0:00:02]} 39. Kg1 {
[%emt 0:00:01]} Qg6+ {[%emt 0:00:02]} 40. Kf1 {[%emt 0:00:01]} Qxg7 {[%emt 0:
00:01]} 41. Kf2 {[%emt 0:00:02]} Qf7+ {[%emt 0:00:01]} 42. Kg1 {[%emt 0:00:02]}
Ke2 {[%emt 0:00:02]} 43. Kg2 {[%emt 0:00:00]} Qg7+ {[%emt 0:00:01]} 44. Kh3 {
[%emt 0:00:03]} Kf3 {[%emt 0:00:02]} 45. Kh4 {[%emt 0:00:02]} Qg4# {[%emt 0:00:
02] LimeFarActor won by checkmate} 0-1

[Event "Fast Chess"]
[Site "ChessKid.com"]
[Date "2020.04.05"]
[Round "2"]
[White "Dai, Lana"]
[Black "Hlinka, Patrick"]
[Result "1-0"]
[ECO "C23"]
[WhiteElo "1215"]
[BlackElo "1034"]
[PlyCount "25"]
[EventDate "2020.??.??"]
[TimeControl "180"]
[WhiteClock "0:01:59"]
[BlackClock "0:02:12"]

1. e4 {[%emt 0:00:00]} e5 {[%emt 0:00:00]} 2. Nf3 {[%emt 0:00:02]} Bc5 {
[%emt 0:00:00]} 3. Bc4 {[%emt 0:00:02]} d6 {[%emt 0:00:02]} 4. h3 {[%emt 0:00:
05]} g5 {[%emt 0:00:05]} 5. Nc3 {[%emt 0:00:04]} g4 {[%emt 0:00:04]} 6. hxg4 {
[%emt 0:00:02]} Bxg4 {[%emt 0:00:04]} 7. d3 {[%emt 0:00:01]} Bxf3 {[%emt 0:00:
03]} 8. Qxf3 {[%emt 0:00:06]} Nf6 {[%emt 0:00:05]} 9. Bg5 {[%emt 0:00:04]} Nbd7
{[%emt 0:00:11]} 10. Nd5 {[%emt 0:00:08]} Rg8 {[%emt 0:00:10]} 11. Nxf6+ {
[%emt 0:00:05]} Kf8 {[%emt 0:00:07]} 12. Nxh7+ {[%emt 0:00:08]} Ke8 {[%emt 0:
00:10]} 13. Bxd8 {[%emt 0:00:01] TopBrownCave won by resignation} 1-0

[Event "Fast Chess"]
[Site "ChessKid.com"]
[Date "2020.04.05"]
[Round "3"]
[White "Hlinka, Patricia"]
[Black "Dai, Lana"]
[Result "0-1"]
[ECO "D00"]
[WhiteElo "1026"]
[BlackElo "1220"]
[PlyCount "26"]
[EventDate "2020.??.??"]
[TimeControl "180"]
[WhiteClock "0:01:43"]
[BlackClock "0:02:00"]

1. d4 {[%emt 0:00:00]} d5 {[%emt 0:00:03]} 2. e3 {[%emt 0:00:03]} Nf6 {[%emt 0:
00:04]} 3. c3 {[%emt 0:00:00]} Bf5 {[%emt 0:00:03]} 4. Na3 {[%emt 0:00:04]} e6
{[%emt 0:00:01]} 5. e4 {[%emt 0:00:02]} dxe4 {[%emt 0:00:02]} 6. c4 {[%emt 0:
00:11]} Bb4+ {[%emt 0:00:08]} 7. Ke2 {[%emt 0:00:04]} Nc6 {[%emt 0:00:11]} 8.
Nb5 {[%emt 0:00:04]} Bg4+ {[%emt 0:00:11]} 9. Ke3 {[%emt 0:00:05]} Bxd1 {
[%emt 0:00:06]} 10. f3 {[%emt 0:00:18]} exf3 {[%emt 0:00:02]} 11. gxf3 {
[%emt 0:00:02]} e5 {[%emt 0:00:10]} 12. dxe5 {[%emt 0:00:04]} Nxe5 {[%emt 0:00:
01]} 13. f4 {[%emt 0:00:03]} Neg4# {[%emt 0:00:15] TopBrownCave won by
checkmate} 0-1

[Event "Fast Chess"]
[Site "ChessKid.com"]
[Date "2020.04.05"]
[Round "3"]
[White "Li, Tobias"]
[Black "Li, Patrick"]
[Result "0-1"]
[ECO "C50"]
[WhiteElo "933"]
[BlackElo "1212"]
[PlyCount "60"]
[EventDate "2020.??.??"]
[TimeControl "180"]
[WhiteClock "0:00:23"]

1. e4 {[%emt 0:00:00]} e5 {[%emt 0:00:02]} 2. Nf3 {[%emt 0:00:01]} Nc6 {
[%emt 0:00:02]} 3. Nc3 {[%emt 0:00:03]} Bc5 {[%emt 0:00:01]} 4. Bc4 {[%emt 0:
00:02]} h6 {[%emt 0:00:04]} 5. O-O {[%emt 0:00:06]} Nf6 {[%emt 0:00:01]} 6. h3
{[%emt 0:00:07]} O-O {[%emt 0:00:01]} 7. d3 {[%emt 0:00:07]} Re8 {[%emt 0:00:
09]} 8. h4 {[%emt 0:00:04]} d6 {[%emt 0:00:13]} 9. Be3 {[%emt 0:00:09]} Bxe3 {
[%emt 0:00:06]} 10. fxe3 {[%emt 0:00:08]} Bg4 {[%emt 0:00:02]} 11. Qc1 {
[%emt 0:00:10]} Bxf3 {[%emt 0:00:04]} 12. Rxf3 {[%emt 0:00:06]} Ng4 {[%emt 0:
00:15]} 13. Qf1 {[%emt 0:00:03]} Rf8 {[%emt 0:00:04]} 14. Rg3 {[%emt 0:00:18]}
Qxh4 {[%emt 0:00:06]} 15. Rh3 {[%emt 0:00:15]} Qf6 {[%emt 0:00:05]} 16. Rg3 {
[%emt 0:00:04]} Qxf1+ {[%emt 0:00:06]} 17. Kxf1 {[%emt 0:00:04]} Nf6 {[%emt 0:
00:01]} 18. Re1 {[%emt 0:00:08]} Rfe8 {[%emt 0:00:04]} 19. Nb5 {[%emt 0:00:02]}
Rac8 {[%emt 0:00:06]} 20. Na3 {[%emt 0:00:08]} Nb4 {[%emt 0:00:04]} 21. Rh3 {
[%emt 0:00:00]} a6 {[%emt 0:00:17]} 22. c3 {[%emt 0:00:03]} Nc6 {[%emt 0:00:13]
} 23. Rf3 {[%emt 0:00:07]} b5 {[%emt 0:00:03]} 24. Bb3 {[%emt 0:00:05]} Red8 {
[%emt 0:00:11]} 25. Rf5 {[%emt 0:00:10]} d5 {[%emt 0:00:04]} 26. exd5 {[%emt 0:
00:05]} Nxd5 {[%emt 0:00:02]} 27. e4 {[%emt 0:00:06]} Nf6 {[%emt 0:00:04]} 28.
Rf2 {[%emt 0:00:09]} Rxd3 {[%emt 0:00:02]} 29. Bc2 {[%emt 0:00:05]} Rdd8 {
[%emt 0:00:03]} 30. Rd1 {[%emt 0:00:05]} Rxd1+ {[%emt 0:00:03] OnlyHungryKiwi
won on time} 0-1

[Event "Fast Chess"]
[Site "ChessKid.com"]
[Date "2020.04.06"]
[Round "1"]
[White "Hlinka, Patrick"]
[Black "Georgiev, Maximilian"]
[Result "0-1"]
[ECO "C24"]
[WhiteElo "1104"]
[BlackElo "1336"]
[PlyCount "54"]
[EventDate "2020.??.??"]
[TimeControl "900"]
[WhiteClock "0:12:51"]
[BlackClock "0:12:13"]

1. e4 {[%emt 0:00:04]} e5 {[%emt 0:00:01]} 2. Bc4 {[%emt 0:00:10]} Nf6 {
[%emt 0:00:02]} 3. d3 {[%emt 0:00:05]} Be7 {[%emt 0:00:02]} 4. Bg5 {[%emt 0:00:
01]} O-O {[%emt 0:00:04]} 5. Bxf6 {[%emt 0:00:04]} Bxf6 {[%emt 0:00:01]} 6. Nc3
{[%emt 0:00:15]} Nc6 {[%emt 0:00:02]} 7. Nd5 {[%emt 0:00:02]} Bg5 {[%emt 0:00:
05]} 8. f4 {[%emt 0:00:03]} exf4 {[%emt 0:00:04]} 9. g3 {[%emt 0:00:05]} fxg3 {
[%emt 0:00:02]} 10. hxg3 {[%emt 0:00:02]} Ne5 {[%emt 0:00:09]} 11. Bb3 {
[%emt 0:00:06]} c6 {[%emt 0:00:04]} 12. Nc3 {[%emt 0:00:11]} Bf6 {[%emt 0:00:
07]} 13. d4 {[%emt 0:00:05]} Ng6 {[%emt 0:00:05]} 14. e5 {[%emt 0:00:01]} Be7 {
[%emt 0:00:05]} 15. Qh5 {[%emt 0:00:10]} h6 {[%emt 0:00:06]} 16. g4 {[%emt 0:
00:02]} d6 {[%emt 0:00:08]} 17. Ne4 {[%emt 0:00:02]} d5 {[%emt 0:00:16]} 18. g5
{[%emt 0:00:12]} dxe4 {[%emt 0:00:03]} 19. gxh6 {[%emt 0:00:03]} Bh4+ {[%emt 0:
00:23]} 20. Rxh4 {[%emt 0:00:18]} Nxh4 {[%emt 0:00:01]} 21. Qxh4 {[%emt 0:00:
01]} Qxh4+ {[%emt 0:00:02]} 22. Kd1 {[%emt 0:00:10]} Qxh6 {[%emt 0:00:02]} 23.
c4 {[%emt 0:00:12]} b5 {[%emt 0:00:06]} 24. cxb5 {[%emt 0:00:03]} cxb5 {
[%emt 0:00:02]} 25. a4 {[%emt 0:00:06]} Bg4+ {[%emt 0:00:03]} 26. Ke1 {[%emt 0:
00:05]} Qe3+ {[%emt 0:00:02]} 27. Ne2 {[%emt 0:00:10]} Qxe2# {[%emt 0:00:03]
TallSnazzyBall won by checkmate} 0-1

[Event "Fast Chess"]
[Site "ChessKid.com"]
[Date "2020.04.06"]
[Round "1"]
[White "Sasse, Gabriel"]
[Black "Hessenberger, Oliver"]
[Result "1-0"]
[ECO "C57"]
[WhiteElo "1280"]
[BlackElo "1088"]
[PlyCount "95"]
[EventDate "2020.??.??"]
[TimeControl "900"]
[WhiteClock "0:11:23"]
[BlackClock "0:12:31"]

1. e4 {[%emt 0:00:00]} e5 {[%emt 0:00:02]} 2. Nf3 {[%emt 0:00:01]} Nc6 {
[%emt 0:00:01]} 3. Bc4 {[%emt 0:00:01]} Nf6 {[%emt 0:00:00]} 4. Ng5 {[%emt 0:
00:02]} Rg8 {[%emt 0:00:09]} 5. Bxf7+ {[%emt 0:00:10]} Ke7 {[%emt 0:00:08]} 6.
Bxg8 {[%emt 0:00:01]} h6 {[%emt 0:00:09]} 7. Nf3 {[%emt 0:00:07]} Nxe4 {
[%emt 0:00:05]} 8. Bb3 {[%emt 0:00:05]} Ke8 {[%emt 0:00:00]} 9. Qe2 {[%emt 0:
00:07]} d5 {[%emt 0:00:08]} 10. d3 {[%emt 0:00:05]} Bg4 {[%emt 0:00:04]} 11.
dxe4 {[%emt 0:00:03]} Bxf3 {[%emt 0:00:01]} 12. Qxf3 {[%emt 0:00:02]} dxe4 {
[%emt 0:00:02]} 13. Qxe4 {[%emt 0:00:01]} Be7 {[%emt 0:00:04]} 14. Qf3 {
[%emt 0:00:02]} Nd4 {[%emt 0:00:07]} 15. Qf7+ {[%emt 0:00:03]} Kd7 {[%emt 0:00:
04]} 16. Bc4 {[%emt 0:00:07]} Kc8 {[%emt 0:00:12]} 17. Be6+ {[%emt 0:00:04]}
Kb8 {[%emt 0:00:10]} 18. O-O {[%emt 0:00:08]} Nxc2 {[%emt 0:00:07]} 19. Qxg7 {
[%emt 0:00:02]} Nxa1 {[%emt 0:00:03]} 20. Qg6 {[%emt 0:00:10]} Bd6 {[%emt 0:00:
09]} 21. Nc3 {[%emt 0:00:02]} Bb4 {[%emt 0:00:09]} 22. Bxh6 {[%emt 0:00:02]}
Bxc3 {[%emt 0:00:06]} 23. Bg5 {[%emt 0:00:06]} Nc2 {[%emt 0:00:09]} 24. Bxd8 {
[%emt 0:00:06]} a5 {[%emt 0:00:11]} 25. Qf7 {[%emt 0:00:04]} Bxb2 {[%emt 0:00:
04]} 26. Qxc7+ {[%emt 0:00:02]} Ka7 {[%emt 0:00:02]} 27. Qxc2 {[%emt 0:00:03]}
Rxd8 {[%emt 0:00:03]} 28. Qxb2 {[%emt 0:00:01]} Re8 {[%emt 0:00:03]} 29. Qxe5 {
[%emt 0:00:04]} Rd8 {[%emt 0:00:14]} 30. Qxa5+ {[%emt 0:00:05]} Kb8 {[%emt 0:
00:04]} 31. Qxd8+ {[%emt 0:00:02]} Ka7 {[%emt 0:00:03]} 32. f4 {[%emt 0:00:01]}
Ka6 {[%emt 0:00:03]} 33. h4 {[%emt 0:00:02]} Kb5 {[%emt 0:00:02]} 34. g4 {
[%emt 0:00:01]} Kc6 {[%emt 0:00:03]} 35. f5 {[%emt 0:00:02]} Kc5 {[%emt 0:00:
04]} 36. g5 {[%emt 0:00:01]} Kc6 {[%emt 0:00:01]} 37. h5 {[%emt 0:00:01]} b5 {
[%emt 0:00:02]} 38. g6 {[%emt 0:00:01]} b4 {[%emt 0:00:01]} 39. h6 {[%emt 0:00:
01]} Kc5 {[%emt 0:00:00]} 40. f6 {[%emt 0:00:02]} Kb5 {[%emt 0:00:07]} 41. f7 {
[%emt 0:00:02]} Ka4 {[%emt 0:00:01]} 42. g7 {[%emt 0:00:01]} Ka3 {[%emt 0:00:
02]} 43. h7 {[%emt 0:00:01]} b3 {[%emt 0:00:06]} 44. axb3 {[%emt 0:00:03]} Kb4
{[%emt 0:00:04]} 45. f8=Q+ {[%emt 0:00:02]} Kb5 {[%emt 0:00:04]} 46. Qc8 {
[%emt 0:00:04]} Kb6 {[%emt 0:00:02]} 47. Qb4+ {[%emt 0:00:02]} Ka7 {[%emt 0:00:
02]} 48. Qbb7# {[%emt 0:00:04] LimeFarActor won by checkmate} 1-0

[Event "Fast Chess"]
[Site "ChessKid.com"]
[Date "2020.04.06"]
[Round "1"]
[White "Hlinka, Patricia"]
[Black "Dai, Lana"]
[Result "0-1"]
[ECO "D00"]
[WhiteElo "994"]
[BlackElo "1232"]
[PlyCount "60"]
[EventDate "2020.??.??"]
[TimeControl "900"]
[WhiteClock "0:11:04"]
[BlackClock "0:10:40"]

1. d4 {[%emt 0:00:02]} d5 {[%emt 0:00:03]} 2. e3 {[%emt 0:00:03]} Nc6 {[%emt 0:
00:03]} 3. c3 {[%emt 0:00:04]} Nf6 {[%emt 0:00:03]} 4. f4 {[%emt 0:00:06]} Bg4
{[%emt 0:00:04]} 5. Qc2 {[%emt 0:00:13]} e6 {[%emt 0:00:08]} 6. Nf3 {[%emt 0:
00:09]} Bxf3 {[%emt 0:00:02]} 7. gxf3 {[%emt 0:00:02]} Bd6 {[%emt 0:00:08]} 8.
h4 {[%emt 0:00:06]} O-O {[%emt 0:00:04]} 9. h5 {[%emt 0:00:12]} h6 {[%emt 0:00:
12]} 10. Rg1 {[%emt 0:00:03]} Nxh5 {[%emt 0:00:07]} 11. Rh1 {[%emt 0:00:05]}
Nf6 {[%emt 0:00:19]} 12. Rg1 {[%emt 0:00:09]} Nh5 {[%emt 0:00:03]} 13. Rh1 {
[%emt 0:00:13]} Ng3 {[%emt 0:00:02]} 14. Bd3 {[%emt 0:00:12]} Nxh1 {[%emt 0:00:
16]} 15. Be2 {[%emt 0:00:10]} Qh4+ {[%emt 0:00:12]} 16. Kd1 {[%emt 0:00:06]}
Nf2+ {[%emt 0:00:08]} 17. Kd2 {[%emt 0:00:08]} Qh1 {[%emt 0:00:21]} 18. a4 {
[%emt 0:00:12]} a5 {[%emt 0:00:08]} 19. Ra3 {[%emt 0:00:15]} Bxa3 {[%emt 0:00:
03]} 20. bxa3 {[%emt 0:00:03]} f5 {[%emt 0:00:09]} 21. Bd3 {[%emt 0:00:07]}
Nxd3 {[%emt 0:00:11]} 22. Qxd3 {[%emt 0:00:09]} Qg2+ {[%emt 0:00:04]} 23. Kd1 {
[%emt 0:00:06]} Qxf3+ {[%emt 0:00:05]} 24. Kd2 {[%emt 0:00:11]} Rf6 {[%emt 0:
00:03]} 25. Kc2 {[%emt 0:00:11]} Rg6 {[%emt 0:00:07]} 26. Kb3 {[%emt 0:00:07]}
Rg1 {[%emt 0:00:11]} 27. Bd2 {[%emt 0:00:07]} Qd1+ {[%emt 0:00:06]} 28. Ka2 {
[%emt 0:00:12]} Rg2 {[%emt 0:00:18]} 29. Ka1 {[%emt 0:00:20]} Qb3 {[%emt 0:00:
11]} 30. Be1 {[%emt 0:00:18]} Qa2# {[%emt 0:00:05] TopBrownCave won by
checkmate} 0-1

[Event "Fast Chess"]
[Site "ChessKid.com"]
[Date "2020.04.06"]
[Round "1"]
[White "Li, Tobias"]
[Black "Li, Patrick"]
[Result "1-0"]
[ECO "C42"]
[WhiteElo "1226"]
[BlackElo "920"]
[PlyCount "67"]
[EventDate "2020.??.??"]
[TimeControl "900"]
[WhiteClock "0:10:53"]
[BlackClock "0:12:59"]

1. e4 {[%emt 0:00:03]} e5 {[%emt 0:00:00]} 2. Nf3 {[%emt 0:00:02]} Nf6 {
[%emt 0:00:02]} 3. Nxe5 {[%emt 0:00:01]} d6 {[%emt 0:00:04]} 4. Nf3 {[%emt 0:
00:02]} Nxe4 {[%emt 0:00:04]} 5. d3 {[%emt 0:00:02]} Nc5 {[%emt 0:00:06]} 6.
Qe2+ {[%emt 0:00:03]} Be7 {[%emt 0:00:05]} 7. Nc3 {[%emt 0:00:01]} d5 {[%emt 0:
00:05]} 8. Qe5 {[%emt 0:00:05]} d4 {[%emt 0:00:03]} 9. Qxd4 {[%emt 0:00:08]}
Qxd4 {[%emt 0:00:05]} 10. Nxd4 {[%emt 0:00:03]} O-O {[%emt 0:00:13]} 11. Be2 {
[%emt 0:00:02]} Nca6 {[%emt 0:00:09]} 12. O-O {[%emt 0:00:04]} Nc5 {[%emt 0:00:
08]} 13. Be3 {[%emt 0:00:08]} h6 {[%emt 0:00:12]} 14. Ndb5 {[%emt 0:00:02]}
Nba6 {[%emt 0:00:17]} 15. Nd5 {[%emt 0:00:11]} Re8 {[%emt 0:00:06]} 16. Ndxc7 {
[%emt 0:00:05]} Nxc7 {[%emt 0:00:03]} 17. Nxc7 {[%emt 0:00:01]} Rd8 {[%emt 0:
00:09]} 18. Nxa8 {[%emt 0:00:02]} b6 {[%emt 0:00:07]} 19. Nc7 {[%emt 0:00:03]}
a6 {[%emt 0:00:09]} 20. Bf3 {[%emt 0:00:06]} Bd6 {[%emt 0:00:05]} 21. Nd5 {
[%emt 0:00:02]} Bf5 {[%emt 0:00:14]} 22. Nxb6 {[%emt 0:00:03]} Rb8 {[%emt 0:00:
13]} 23. Nc4 {[%emt 0:00:04]} Be6 {[%emt 0:00:05]} 24. Nxd6 {[%emt 0:00:02]}
Rxb2 {[%emt 0:00:04]} 25. Nc4 {[%emt 0:00:03]} Rxc2 {[%emt 0:00:03]} 26. Bxc5 {
[%emt 0:00:07]} Bxc4 {[%emt 0:00:02]} 27. dxc4 {[%emt 0:00:08]} Rxc4 {[%emt 0:
00:01]} 28. Be3 {[%emt 0:00:03]} Rh4 {[%emt 0:00:18]} 29. Rab1 {[%emt 0:00:02]}
Ra4 {[%emt 0:00:15]} 30. Bd1 {[%emt 0:00:02]} Rxa2 {[%emt 0:00:05]} 31. Bb3 {
[%emt 0:00:07]} Ra3 {[%emt 0:00:03]} 32. Bc2 {[%emt 0:00:01]} Rc3 {[%emt 0:00:
09]} 33. Rb8+ {[%emt 0:00:02]} Rc8 {[%emt 0:00:24]} 34. Rxc8# {[%emt 0:00:00]
OnlyHungryKiwi won by checkmate} 1-0

[Event "Fast Chess"]
[Site "ChessKid.com"]
[Date "2020.04.06"]
[Round "2"]
[White "Georgiev, Maximilian"]
[Black "Dai, Lana"]
[Result "1-0"]
[ECO "C65"]
[WhiteElo "1342"]
[BlackElo "1226"]
[PlyCount "111"]
[EventDate "2020.??.??"]
[TimeControl "900"]
[WhiteClock "0:06:31"]
[BlackClock "0:09:52"]

1. e4 {[%emt 0:00:00]} e5 {[%emt 0:00:02]} 2. Nf3 {[%emt 0:00:01]} Nc6 {
[%emt 0:00:03]} 3. Bb5 {[%emt 0:00:01]} Nf6 {[%emt 0:00:05]} 4. Bxc6 {[%emt 0:
00:01]} dxc6 {[%emt 0:00:02]} 5. Nxe5 {[%emt 0:00:02]} Qe7 {[%emt 0:00:04]} 6.
Nc4 {[%emt 0:00:04]} Nxe4 {[%emt 0:00:05]} 7. O-O {[%emt 0:00:03]} Qd8 {
[%emt 0:00:19]} 8. Re1 {[%emt 0:00:03]} Bf5 {[%emt 0:00:02]} 9. d3 {[%emt 0:00:
04]} Be7 {[%emt 0:00:19]} 10. dxe4 {[%emt 0:00:02]} Be6 {[%emt 0:00:04]} 11.
Qxd8+ {[%emt 0:00:14]} Bxd8 {[%emt 0:00:05]} 12. Ncd2 {[%emt 0:00:03]} O-O {
[%emt 0:00:05]} 13. Nc3 {[%emt 0:00:02]} Bc4 {[%emt 0:00:05]} 14. b3 {[%emt 0:
00:04]} Be6 {[%emt 0:00:05]} 15. Nf3 {[%emt 0:00:04]} Bf6 {[%emt 0:00:07]} 16.
Bb2 {[%emt 0:00:04]} Rad8 {[%emt 0:00:09]} 17. e5 {[%emt 0:00:02]} Be7 {
[%emt 0:00:27]} 18. Nd1 {[%emt 0:00:11]} Bb4 {[%emt 0:00:03]} 19. c3 {[%emt 0:
00:04]} Bc5 {[%emt 0:00:06]} 20. b4 {[%emt 0:00:02]} Be7 {[%emt 0:00:06]} 21.
a4 {[%emt 0:00:06]} Bg4 {[%emt 0:00:03]} 22. Re3 {[%emt 0:00:05]} c5 {[%emt 0:
00:06]} 23. b5 {[%emt 0:00:05]} c4 {[%emt 0:00:05]} 24. h3 {[%emt 0:00:04]} Bh5
{[%emt 0:00:08]} 25. Ne1 {[%emt 0:00:05]} Bxd1 {[%emt 0:00:21]} 26. Nf3 {
[%emt 0:00:09]} Bb3 {[%emt 0:00:14]} 27. Ra3 {[%emt 0:00:05]} Bxa3 {[%emt 0:00:
04]} 28. Bxa3 {[%emt 0:00:01]} Rd1+ {[%emt 0:00:13]} 29. Kh2 {[%emt 0:00:03]}
Rfd8 {[%emt 0:00:13]} 30. e6 {[%emt 0:00:10]} fxe6 {[%emt 0:00:06]} 31. Rxe6 {
[%emt 0:00:02]} Bxa4 {[%emt 0:00:14]} 32. Be7 {[%emt 0:00:05]} R8d7 {[%emt 0:
00:07]} 33. Bb4 {[%emt 0:00:08]} Bxb5 {[%emt 0:00:03]} 34. Ne5 {[%emt 0:00:05]}
Rd8 {[%emt 0:00:22]} 35. Kg3 {[%emt 0:00:08]} Bd7 {[%emt 0:00:13]} 36. Re7 {
[%emt 0:00:07]} Bf5 {[%emt 0:00:18]} 37. Rxc7 {[%emt 0:00:11]} Re8 {[%emt 0:00:
09]} 38. Nf3 {[%emt 0:00:14]} Be4 {[%emt 0:00:06]} 39. Ng5 {[%emt 0:00:08]}
Rd3+ {[%emt 0:00:09]} 40. f3 {[%emt 0:00:04]} Bd5 {[%emt 0:00:08]} 41. h4 {
[%emt 0:00:07]} h6 {[%emt 0:00:04]} 42. Nh3 {[%emt 0:00:08]} Re5 {[%emt 0:00:
06]} 43. Rc8+ {[%emt 0:00:08]} Kf7 {[%emt 0:00:07]} 44. Rf8+ {[%emt 0:00:05]}
Kg6 {[%emt 0:00:09]} 45. Nf4+ {[%emt 0:00:07]} Kh7 {[%emt 0:00:12]} 46. Nxd3 {
[%emt 0:00:07]} Re3 {[%emt 0:00:13]} 47. Nf4 {[%emt 0:00:05]} Bc6 {[%emt 0:00:
18]} 48. Kf2 {[%emt 0:00:07]} Re5 {[%emt 0:00:09]} 49. Kg3 {[%emt 0:00:06]} a5
{[%emt 0:00:03]} 50. Bd6 {[%emt 0:00:04]} Rb5 {[%emt 0:00:15]} 51. Nh5 {
[%emt 0:00:28]} Rb3 {[%emt 0:00:09]} 52. Rf7 {[%emt 0:00:08]} a4 {[%emt 0:00:
13]} 53. Rxg7+ {[%emt 0:00:02]} Kh8 {[%emt 0:00:03]} 54. Be5 {[%emt 0:00:06]}
Bb5 {[%emt 0:00:38]} 55. Nf4 {[%emt 0:00:04]} a3 {[%emt 0:00:08]} 56. Ng6# {
[%emt 0:00:02] TallSnazzyBall won by checkmate} 1-0